bitfinex-derivatives/quotes_ETHF0:USTF0_20250929
["timestamp","ask_amount","ask_price","bid_price","bid_amount"]
[1759107633414,1.68606702,4127.8,4127.7,3.2078]
[1759107634122,1.93106702,4127.8,4127.7,3.2078]
[1759107634916,1.93106702,4127.8,4127.2,1.63555986]
[1759107634917,0.65842,4127.3,4127.2,5.28505986]
[1759107635211,0.97652,4127.3,4127.2,5.28505986]
[1759107636316,0.97652,4127.3,4127.2,6.1616613]
[1759107637212,0.97652,4127.3,4127.2,4.85500144]
[1759107638320,1.19612,4127.3,4127.2,4.85500144]
[1759107638519,1.19612,4127.3,4127.2,0.4417]
[1759107638520,1.68581822,4127.3,4127.2,0.4417]
[1759107638812,1.68581822,4127.3,4127.0,0.22551534]
[1759107638813,0.87804,4127.1,4127.0,0.22551534]
[1759107639026,2.56243966,4127.1,4127.0,0.00221534]
[1759107640018,1.68583822,4127.1,4127.0,0.00221534]
[1759107640413,1.68583822,4127.1,4127.0,0.22551534]
[1759107641112,1.68583822,4127.1,4127.0,0.00221534]
[1759107642724,6.68583822,4127.1,4127.0,0.00221534]
[1759107642915,10.77023966,4127.1,4127.0,0.00221534]
[1759107643316,5.77023966,4127.1,4127.0,0.00221534]
[1759107643921,6.01523966,4127.1,4127.0,0.00221534]
[1759107646926,5.77023966,4127.1,4127.0,0.00221534]
[1759107647127,6.01523966,4127.1,4127.0,0.00221534]
[1759107648423,5.13863822,4127.1,4127.0,0.00221534]
[1759107648630,4.89363822,4127.1,4127.0,0.00221534]
[1759107648925,5.13863822,4127.1,4127.0,0.00221534]
[1759107652129,5.13668603,4127.1,4127.0,0.00221534]
[1759107652824,4.89168603,4127.1,4127.0,0.00221534]
[1759107653029,5.13668603,4127.1,4127.0,0.00221534]
[1759107657426,4.89168603,4127.1,4127.0,0.00221534]
[1759107657731,5.13668603,4127.1,4127.0,0.73811534]
[1759107658123,4.89168603,4127.1,4127.0,0.73811534]
[1759107658625,1.92888603,4127.1,4127.0,0.73811534]
[1759107659831,1.68388603,4127.1,4127.0,0.73811534]
[1759107660238,1.92888603,4127.1,4127.0,0.73811534]
[1759107661832,1.92888603,4127.1,4127.0,0.21051534]
[1759107662027,1.92888603,4127.1,4127.0,0.00221534]
[1759107675039,5.13668603,4127.1,4127.0,0.00221534]
[1759107675435,6.01328747,4127.1,4127.0,0.00221534]
[1759107684048,5.13568603,4127.1,4127.0,0.22471534]
[1759107685151,5.13568603,4127.1,4127.0,0.00221534]
[1759107685451,4.89168603,4127.1,4127.0,0.00221534]
[1759107685648,5.13568603,4127.1,4127.0,0.75541534]
[1759107686153,5.13568603,4127.1,4127.0,0.43761534]
[1759107686350,4.89168603,4127.1,4127.0,0.43761534]
[1759107686554,5.13568603,4127.1,4127.0,0.43761534]
[1759107686856,5.13568603,4127.1,4127.0,0.22471534]
[1759107687159,1.92788603,4127.1,4127.0,0.22471534]
[1759107688859,1.68388603,4127.1,4127.0,0.22471534]
[1759107689055,1.92788603,4127.1,4127.0,0.43761534]
[1759107692764,1.92788603,4127.1,4127.0,0.22471534]
[1759107693061,0.48774603,4127.1,4127.0,6.63201678]
[1759107693358,1.26574603,4127.1,4127.0,6.63201678]
[1759107693560,1.48734603,4127.1,4127.0,0.00221534]
[1759107699065,4.69514603,4127.1,4127.0,0.00221534]
[1759107702573,4.69514603,4127.1,4126.1,4.22253811]
[1759107702574,0.7556,4126.2,4126.1,3.2078]
[1759107702782,2.93812414,4126.2,4126.1,3.2078]
[1759107703174,0.4265,4125.7,4125.6,3.4303]
[1759107703375,0.9996,4125.7,4125.6,3.961]
[1759107703569,0.9996,4125.7,4125.6,3.96340802]
[1759107703976,1.92643128,4125.7,4125.6,3.96340802]
[1759107704179,1.92643128,4125.7,4125.6,8.96340802]
[1759107705881,1.43569,4125.7,4125.6,8.96340802]
[1759107706283,0.3291,4125.9,4125.8,0.43608]
[1759107706481,0.43607,4126.0,4125.8,2.20401811]
[1759107706676,0.244,4126.1,4126.0,0.8769]
[1759107706876,0.73422581,4126.1,4126.0,0.8769]
[1759107707570,1.06332581,4126.1,4126.0,0.8769]
[1759107707977,1.26822581,4126.1,4126.0,0.7532]
[1759107708177,1.48982581,4126.1,4126.0,0.7532]
[1759107709785,1.26822581,4126.1,4126.0,0.7532]
[1759107710082,1.06332581,4126.1,4126.0,0.7532]
[1759107711082,0.5731,4126.1,4126.0,0.7532]
[1759107711985,0.136,4126.5,4126.3,0.7532]
[1759107711986,0.97002,4126.4,4126.3,0.7532]
[1759107712179,1.70358582,4126.4,4126.3,0.7532]
[1759107712390,1.92518582,4126.4,4126.3,0.7532]
[1759107713190,1.43562,4126.4,4126.3,0.7532]
[1759107713488,1.92516123,4126.4,4126.3,0.7532]
[1759107718190,1.92516123,4126.4,4126.3,0.4354]
[1759107719091,1.92516123,4126.4,4126.3,0.2225]
[1759107720392,1.68116123,4126.4,4126.3,0.2225]
[1759107720692,1.92516123,4126.4,4126.3,0.2225]
[1759107720890,0.48954123,4126.4,4126.3,0.7448]
[1759107721192,0.43598,4126.8,4126.7,0.4185]
[1759107721388,3.4206,4127.1,4127.0,0.4185]
[1759107721594,4.15460511,4127.1,4127.0,1.43323811]
[1759107721785,0.4568,4127.1,4127.0,1.74213811]
[1759107721980,0.7806,4127.1,4127.0,1.74213811]
[1759107722381,0.3238,4127.1,4127.0,1.74213811]
[1759107724194,0.97252,4127.4,4127.3,0.4185]
[1759107724494,0.5366,4127.4,4127.3,4.94993811]
[1759107726593,0.3238,4127.4,4127.3,4.94993811]
[1759107726794,0.3238,4127.7,4127.6,0.7274]
[1759107726991,0.3238,4127.9,4127.8,0.7274]
[1759107727194,0.97243,4128.2,4128.1,0.7274]
[1759107727793,1.17793,4128.2,4128.1,0.2051]
[1759107728098,1.17797,4127.8,4127.7,1.74213811]
[1759107730196,0.43584,4128.2,4127.8,0.43587]
[1759107730392,0.64865,4128.0,4127.9,0.3089]
[1759107730595,0.64865,4128.0,4127.9,0.7274]
[1759107731001,0.97245,4128.0,4127.9,0.7274]
[1759107731294,1.30295,4128.0,4127.9,0.7274]
[1759107731499,0.8671,4128.0,4127.9,0.7274]
[1759107733491,0.8671,4128.0,4127.9,0.4185]
[1759107735301,0.8671,4128.0,4127.9,0.7447]
[1759107737500,0.7421,4128.0,4127.9,0.7447]
[1759107737696,0.5366,4128.0,4127.9,0.7447]
[1759107738703,0.6708,4128.0,4127.9,0.7447]
[1759107739804,0.8877,4128.0,4127.9,0.7447]
[1759107741504,0.8877,4128.0,4127.9,0.4185]
[1759107743001,0.43586,4127.9,4127.8,3.2078]
[1759107743307,0.4309,4127.4,4127.3,3.2078]
[1759107743512,1.20111,4127.4,4127.3,3.2078]
[1759107746804,0.43596,4126.9,4126.8,3.2078]
[1759107747007,0.43606,4126.0,4125.8,1.30665986]
[1759107747203,0.43606,4126.0,4125.7,3.2078]
[1759107747204,1.18108,4125.8,4125.7,3.2078]
[1759107747407,1.18108,4125.8,4125.7,3.4158]
[1759107747708,1.18108,4125.8,4125.7,3.636]
[1759107749105,1.18108,4125.8,4125.7,3.4158]
[1759107752611,1.18108,4125.8,4125.7,4.96993811]
[1759107752904,0.75628,4125.8,4125.7,4.96993811]
[1759107753210,0.43608,4125.8,4125.7,4.96993811]
[1759107756710,0.75628,4125.8,4125.7,4.96993811]
[1759107758306,0.75628,4125.8,4125.7,4.83232344]
[1759107759314,0.96958,4125.8,4125.7,4.83232344]
[1759107760512,3.3312,4126.5,4126.1,0.7474]
[1759107760714,0.75622,4126.4,4126.3,0.7474]
[1759107760907,0.96952,4126.4,4126.3,1.62452344]
[1759107761513,3.3312,4127.0,4126.3,1.62452344]
[1759107761712,0.75619,4126.7,4126.6,0.4282]
[1759107761914,0.96949,4126.7,4126.6,0.7474]
[1759107762112,1.18099,4126.7,4126.6,0.7474]
[1759107762710,1.18099,4126.7,4126.6,1.62452344]
[1759107764018,0.745,4126.7,4126.6,1.62452344]
[1759107764718,0.745,4126.7,4126.6,1.30532344]
[1759107765223,0.745,4126.7,4126.6,1.62452344]
[1759107769525,0.5335,4127.0,4126.9,0.7474]
[1759107769720,0.75615,4127.0,4126.9,1.62452344]
[1759107770133,0.3202,4127.0,4126.9,1.62452344]
[1759107770317,0.96941,4127.4,4127.3,0.7474]
[1759107770724,0.96941,4127.4,4127.3,1.62452344]
[1759107772024,0.75611,4127.4,4127.3,1.62452344]
[1759107772532,0.96936,4127.9,4127.8,0.2202]
[1759107772736,0.96936,4127.9,4127.8,0.7474]
[1759107774931,1.18086,4127.9,4127.8,0.7474]
[1759107775338,0.745,4127.9,4127.8,0.7474]
[1759107777129,1.18436,4127.9,4127.8,0.4282]
[1759107781037,0.7485,4127.9,4127.8,0.7654]
[1759107781533,0.3202,4127.9,4127.8,3.9732]
[1759107781737,1.19935,4128.1,4128.0,0.4224]
[1759107782038,0.7635,4127.9,4127.8,3.85897]
[1759107782632,0.7635,4127.9,4127.8,4.40327]
[1759107783042,0.7635,4127.9,4127.8,5.28039344]
[1759107785944,1.0075,4127.9,4127.8,3.2078]
[1759107786144,1.19941,4127.4,4127.3,3.2078]
[1759107786844,1.19948,4126.8,4126.7,3.2078]
[1759107787037,0.7635,4126.3,4126.2,4.08492344]
[1759107787343,0.7635,4126.3,4126.2,4.30022344]
[1759107787938,0.7635,4126.3,4126.2,4.84452344]
[1759107788140,0.5564,4126.3,4126.2,4.84452344]
[1759107788536,1.19949,4126.8,4126.7,0.2153]
[1759107788736,1.19949,4126.8,4126.7,1.29952344]
[1759107789035,0.244,4126.9,4126.4,0.2153]
[1759107789036,1.10951,4126.5,4126.4,0.2153]
[1759107789238,1.33071,4126.5,4126.4,1.09242344]
[1759107789643,0.8947,4126.5,4126.4,1.09242344]
[1759107789837,0.8947,4126.5,4126.4,1.63672344]
[1759107794651,0.43592,4127.4,4126.8,0.217]
[1759107794842,1.22085,4128.0,4127.4,0.85721]
[1759107794843,3.2078,4127.5,4127.4,0.85721]
[1759107795448,3.2078,4127.5,4127.4,1.19491]
[1759107796043,3.5319,4127.5,4127.4,1.19491]
[1759107796449,0.5345,4127.8,4127.7,0.759]
[1759107796650,0.7502,4127.8,4127.7,1.63612344]
[1759107797348,1.18607,4127.8,4127.7,1.63612344]
[1759107798249,1.18607,4127.8,4127.7,1.29842344]
[1759107798644,1.18607,4127.8,4127.7,0.4213]
[1759107798851,1.18607,4127.8,4127.0,1.19495]
[1759107798852,0.7502,4127.1,4127.0,1.19495]
[1759107799054,0.7502,4127.1,4127.0,2.07207344]
[1759107799247,0.7502,4127.1,4127.0,1.29842344]
[1759107799551,1.18618,4126.8,4126.7,4.28922344]
[1759107800741,1.18618,4126.8,4126.7,3.2078]
[1759107802055,1.43018,4126.8,4126.7,3.4121]
[1759107803053,0.436,4126.6,4126.5,0.87712344]
[1759107803242,1.1862,4126.6,4126.5,1.29842344]
[1759107803747,0.7502,4126.6,4126.5,1.63612344]
[1759107807558,0.5345,4126.6,4126.5,1.63612344]
[1759107809055,0.1353,4127.0,4126.5,1.63612344]
[1759107809251,0.6803,4127.0,4126.9,1.62392344]
[1759107809746,1.33765,4127.0,4126.9,1.30432344]
[1759107809950,1.33765,4127.0,4126.9,0.87712344]
[1759107811449,1.33765,4127.0,4126.9,1.09722344]
[1759107811653,1.33765,4127.0,4126.9,1.30432344]
[1759107812057,1.33765,4127.0,4126.9,1.62392344]
[1759107812360,1.82981387,4127.0,4126.9,1.62392344]
[1759107812758,1.33765,4127.0,4126.9,1.62392344]
[1759107812958,1.82976211,4127.0,4126.9,1.62392344]
[1759107813159,1.33765,4127.0,4126.9,1.62392344]
[1759107813554,0.545,4126.5,4126.4,0.97571]
[1759107813754,0.545,4126.5,4126.4,2.05993344]
[1759107814155,0.545,4126.7,4126.6,1.18279]
[1759107816259,0.7664,4126.7,4126.6,0.7468]
[1759107818459,0.7664,4126.7,4126.6,1.76138893]
[1759107819366,0.7664,4126.7,4126.6,2.19738893]
[1759107819558,0.7664,4126.3,4126.2,3.2078]
[1759107819750,1.50312017,4126.3,4126.2,3.2078]
[1759107819952,1.50312017,4126.3,4125.7,3.2078]
[1759107819953,1.20248,4125.8,4125.7,3.2078]
[1759107820356,0.7664,4125.8,4125.7,3.2078]
[1759107820549,0.7664,4125.8,4125.7,3.4279]
[1759107821350,0.7664,4125.8,4125.7,3.2078]
[1759107821760,1.0104,4125.8,4125.7,3.2078]
[1759107821965,1.20249,4125.7,4125.6,0.00240802]
[1759107823960,0.545,4125.7,4125.6,0.74920802]
[1759107824161,0.7664,4125.7,4125.6,0.74920802]
[1759107824361,0.7664,4125.7,4125.6,0.42960802]
[1759107824855,0.7664,4125.7,4125.6,0.00240802]
[1759107825259,1.25817631,4125.7,4125.6,0.00240802]
[1759107825563,6.25817631,4125.7,4125.6,0.00240802]
[1759107826265,47.05817631,4125.7,4125.6,0.00240802]
[1759107826958,0.1352,4125.5,4124.7,4.28095163]
[1759107827164,0.7664,4124.8,4124.7,3.6935627]
[1759107827462,0.7664,4124.8,4124.7,0.4857627]
[1759107827762,1.20259,4124.8,4124.7,0.4857627]
[1759107827967,1.2055452,4124.8,4124.7,0.48805029]
[1759107828972,1.2055452,4124.8,4124.7,0.28095029]
[1759107829661,0.7693552,4124.8,4124.7,0.48805029]
[1759107829869,0.7693552,4124.8,4124.7,0.80765029]
[1759107830374,0.3219552,4124.8,4124.7,0.80765029]
[1759107831575,0.5479552,4124.8,4124.7,0.74908759]
[1759107832470,0.7693552,4124.8,4124.7,0.74908759]
[1759107834073,0.7693552,4124.8,4124.7,0.00228759]
[1759107838875,0.7749,4123.8,4123.7,3.4139]
[1759107839775,0.7749,4123.8,4123.7,3.21069463]
[1759107840481,0.7749,4123.8,4123.7,0.00289463]
[1759107841683,1.0189,4123.8,4123.7,0.00289463]
[1759107841878,0.7749,4123.8,4123.7,0.73609463]
[1759107842074,1.0189,4123.8,4123.7,0.73609463]
[1759107843081,1.0189,4123.8,4123.7,0.41989463]
[1759107843474,0.7973,4123.8,4123.7,0.73609463]
[1759107843778,1.0189,4123.8,4123.7,0.73609463]
[1759107844581,1.0189,4123.8,4123.7,0.00289463]
[1759107844781,1.0189,4123.8,4123.7,0.20899463]
[1759107845980,1.0189,4123.8,4123.7,0.73609463]
[1759107846179,1.0189,4123.8,4123.7,1.75068356]
[1759107846579,1.0189,4123.8,4123.7,0.41989463]
[1759107847178,0.3347,4123.8,4123.7,0.73609463]
[1759107847378,1.12044,4124.3,4124.2,0.417]
[1759107847580,0.4402,4123.8,4123.7,0.00289463]
[1759107847882,1.0189,4123.8,4123.7,0.00289463]
[1759107849078,0.7749,4123.0,4122.9,0.02425507]
[1759107849382,1.21136,4122.2,4122.0,0.19020595]
[1759107849584,1.0189,4122.1,4122.0,0.19020595]
[1759107849887,0.5533,4121.7,4121.6,4.37752]
[1759107850079,0.5533,4121.7,4121.6,3.94306421]
[1759107850080,0.5557437,4121.7,4121.6,3.94306421]
[1759107850377,0.7773437,4121.7,4121.6,3.94306421]
[1759107850583,0.7773437,4121.7,4121.6,3.62686421]
[1759107850977,0.7773437,4121.7,4121.6,3.94306421]
[1759107851181,0.0024437,4121.7,4121.6,3.94306421]
[1759107851773,0.0024437,4121.7,4121.6,8.94306421]
[1759107852176,0.0024437,4121.7,4121.6,3.62686421]
[1759107852177,0.7450437,4121.7,4121.6,3.62686421]
[1759107852685,0.7450437,4121.7,4121.6,3.41596421]
[1759107853182,0.7450437,4121.7,4121.6,3.93386421]
[1759107853379,0.7450437,4121.7,4121.6,4.94845314]
[1759107853986,0.5298437,4121.7,4121.6,4.94845314]
[1759107854386,0.0024437,4121.7,4121.6,4.94845314]
[1759107854686,0.7325437,4121.7,4121.6,3.61996421]
[1759107854988,0.7325437,4121.7,4121.6,0.41216421]
[1759107856187,0.7325437,4121.7,4121.6,0.72606421]
[1759107856381,0.7325437,4121.7,4121.6,0.41216421]
[1759107856587,0.7325437,4121.7,4121.6,0.00206421]
[1759107857287,0.4213,4120.7,4120.6,3.4161]
[1759107857480,0.4213,4120.7,4120.1,3.2078]
[1759107857481,0.56084,4120.5,4120.1,3.2078]
[1759107857676,0.7301,4120.2,4120.1,3.4161]
[1759107857885,0.7301,4120.2,4120.1,3.6201]
[1759107858390,0.7301,4120.2,4120.1,3.62306544]
[1759107858688,0.7301,4120.2,4120.1,3.21076544]
[1759107859079,0.7301,4120.2,4120.1,3.93696544]
[1759107859278,0.9751,4120.9,4120.8,0.2083]
[1759107859476,0.5149,4120.2,4120.1,3.93696544]
[1759107859691,0.5149,4120.2,4120.1,4.95155437]
[1759107859990,0.6391,4120.5,4120.4,1.16285]
[1759107860286,0.6391,4120.5,4120.4,2.17743893]
[1759107860483,0.5149,4120.5,4120.4,2.17743893]
[1759107860690,0.9761,4120.9,4120.8,0.4123]
[1759107860888,0.9761,4120.9,4120.8,0.2083]
[1759107861078,0.2061,4120.9,4120.8,0.7262]
[1759107861285,3.8751,4121.2,4121.1,0.4123]
[1759107861488,4.1839,4121.2,4121.1,0.4123]
[1759107861991,0.8543,4121.5,4121.4,0.7262]
[1759107862385,0.8543,4121.5,4121.4,0.4123]
[1759107862787,0.8543,4121.5,4121.4,0.7262]
[1759107862988,0.5173437,4121.7,4121.6,0.7262]
[1759107863193,0.7325437,4121.7,4121.6,0.4123]
[1759107863697,0.7325437,4121.7,4121.6,0.7248]
[1759107865993,0.5173437,4121.7,4121.6,3.9326]
[1759107866193,0.7320437,4121.7,4121.6,3.9326]
[1759107866395,0.7320437,4121.7,4121.6,3.6201]
[1759107866790,0.7320437,4121.7,4121.6,3.9326]
[1759107867593,0.0024437,4121.7,4121.6,3.9326]
[1759107867795,0.5403437,4121.7,4121.6,3.9326]
[1759107868991,0.0024437,4121.7,4121.6,3.9326]
[1759107870099,0.0024437,4121.7,4121.6,8.9326]
[1759107870803,0.43644,4122.4,4122.3,0.7641]
[1759107871296,0.97434,4122.4,4122.3,0.7641]
[1759107871701,0.97614395,4122.4,4122.3,0.7641]
[1759107872592,0.43824395,4122.4,4122.3,0.7641]
[1759107873404,0.76724395,4122.4,4122.3,0.7641]
[1759107873603,1.19084395,4122.4,4122.3,0.2265]
[1759107873800,0.5379,4122.2,4122.1,3.9719]
[1759107875098,0.329,4122.2,4122.1,3.9719]
[1759107875900,0.43645,4122.3,4122.2,0.3125]
[1759107876204,0.43645,4122.3,4122.2,0.7641]
[1759107876405,0.76545,4122.3,4122.2,0.7641]
[1759107877714,0.329,4122.3,4122.2,0.7641]
[1759107877907,0.00180395,4122.4,4122.3,0.7641]
[1759107878299,0.00180395,4122.4,4122.3,1.0101]
[1759107878700,0.00180395,4122.4,4122.3,6.0101]
[1759107879402,0.00180395,4122.4,4122.3,1.0101]
[1759107879706,0.329,4123.7,4123.6,0.4516]
[1759107879909,0.5379,4123.7,4123.6,0.7641]
[1759107880100,0.7526,4123.7,4123.6,0.4516]
[1759107880605,0.75445753,4123.7,4123.6,0.45455683]
[1759107884208,0.75445753,4123.7,4123.6,1.33264913]
[1759107884697,0.75445753,4123.7,4123.6,1.10754913]
[1759107885509,0.75445753,4123.7,4123.6,1.33264913]
[1759107886001,0.33085753,4123.7,4123.6,1.64514913]
[1759107886202,0.00185753,4123.7,4123.6,1.64514913]
[1759107886710,0.33085753,4123.7,4123.6,1.64514913]
[1759107887104,0.33085753,4123.7,4123.6,1.89114913]
[1759107888409,0.75445753,4123.7,4123.6,0.00295683]
[1759107890714,0.75445753,4123.7,4123.6,1.10754913]
[1759107891212,0.75445753,4123.7,4123.6,0.22945683]
[1759107891400,0.75445753,4123.7,4123.6,1.10754913]
[1759107891605,1.00045753,4123.7,4123.6,1.10754913]
[1759107894825,1.00045753,4123.7,4123.6,1.67204913]
[1759107894826,0.75445753,4123.7,4123.6,1.67204913]
[1759107899120,0.33085753,4123.7,4123.6,1.67204913]
[1759107899420,0.00185753,4123.7,4123.6,1.67204913]
[1759107900534,0.75825753,4123.7,4123.6,0.00295683]
[1759107900732,1.19455753,4123.7,4123.6,0.00295683]
[1759107901732,1.68633305,4123.7,4123.6,0.00295683]
[1759107902627,1.68633305,4123.7,4123.6,0.21585683]
[1759107902929,1.19455753,4123.7,4123.6,0.21585683]
[1759107903727,1.19455753,4123.7,4123.6,0.76755683]
[1759107904030,0.75825753,4123.7,4123.6,0.76755683]
[1759107904228,0.00185753,4123.7,4123.6,0.76755683]
[1759107905327,0.00185753,4123.7,4123.6,5.76755683]
[1759107905732,0.66089,4124.4,4124.3,1.20084]
[1759107905934,0.66089,4124.4,4124.3,2.9570246]
[1759107906140,1.20999,4124.4,4124.3,1.6426923]
[1759107906635,0.66089,4124.4,4124.3,1.6426923]
[1759107906834,0.66334086,4124.4,4124.3,1.6426923]
[1759107907634,0.66334086,4124.4,4124.3,2.5207846]
[1759107907832,0.66334086,4124.4,4124.3,2.7667846]
[1759107908237,0.66334086,4124.4,4124.3,1.8886923]
[1759107909130,0.66334086,4124.4,4124.3,2.7667846]
[1759107909331,0.43614,4125.3,4124.4,0.43623]
[1759107909639,0.98523,4125.4,4125.3,0.7646]
[1759107909839,1.04147013,4125.4,4125.3,0.7646]
[1759107910041,1.04147013,4125.4,4125.3,1.20073]
[1759107910042,0.3347,4125.4,4125.3,1.20073]
[1759107910241,0.7564,4125.4,4125.3,0.4252]
[1759107910536,0.75950723,4125.4,4125.3,0.8780923]
[1759107910835,0.75950723,4125.4,4125.3,1.3032923]
[1759107911331,0.75950723,4125.4,4125.3,1.6426923]
[1759107911537,0.5491,4125.8,4125.7,0.7646]
[1759107911725,0.5491,4125.8,4125.7,2.0787823]
[1759107911929,0.5491,4125.8,4125.7,1.6426923]
[1759107912542,0.55159914,4125.8,4125.7,1.6426923]
[1759107913041,0.55159914,4125.8,4125.7,4.8504923]
[1759107913341,0.00249914,4125.8,4125.7,5.9745846]
[1759107916738,0.00249914,4125.8,4125.7,10.9745846]
[1759107917131,0.3167,4126.2,4125.7,10.9745846]
[1759107917345,0.2194,4126.4,4126.3,1.20812]
[1759107917532,0.7594,4126.4,4126.3,4.5280923]
[1759107917933,0.7594,4126.4,4126.3,4.8579923]
[1759107918135,0.5361,4126.4,4126.3,4.8579923]
[1759107918439,0.97416406,4126.4,4126.3,4.8579923]
[1759107919040,1.19746406,4126.4,4126.3,4.8579923]
[1759107920544,0.43806406,4126.4,4126.3,4.8579923]
[1759107921137,0.97416406,4126.4,4126.3,4.8579923]
[1759107921835,1.19746406,4126.4,4126.3,4.8579923]
[1759107925243,1.19746406,4126.4,4126.3,3.65]
[1759107925444,1.31156,4126.0,4125.9,0.7515]
[1759107925642,1.31156,4126.0,4125.9,0.9975]
[1759107926542,1.31156,4126.0,4125.9,1.8755923]
[1759107927245,0.96646,4126.0,4125.9,1.8755923]
[1759107928546,1.31156,4126.0,4125.9,1.8755923]
[1759107929247,1.17646,4126.0,4125.9,1.8755923]
[1759107929647,0.96646,4126.0,4125.9,1.8755923]
[1759107929847,0.5304,4126.0,4125.9,1.8755923]
[1759107932249,0.3254,4126.0,4125.9,1.8755923]
[1759107934550,0.5304,4126.0,4125.9,1.8755923]
[1759107934950,0.3254,4126.0,4125.9,1.8755923]
[1759107935144,0.43605,4126.1,4125.9,1.5662923]
[1759107935345,0.43605,4126.1,4126.0,0.872]
[1759107935748,0.76145,4126.1,4126.0,0.7515]
[1759107936350,0.96645,4126.1,4126.0,0.7515]
[1759107937156,0.96645,4126.1,4126.0,0.9965]
[1759107937358,0.76142,4126.3,4126.2,0.7515]
[1759107937553,0.96642,4126.3,4126.2,1.6295923]
[1759107937750,0.96642,4126.3,4126.2,1.8745923]
[1759107940956,0.43602,4126.3,4126.2,1.8745923]
[1759107942356,0.92649529,4126.3,4126.2,2.01103028]
[1759107944661,1.25189529,4126.3,4126.2,2.01103028]
[1759107945665,1.45689529,4126.3,4126.2,2.01103028]
[1759107946350,1.66689529,4126.3,4126.2,2.01103028]
[1759107948465,1.45689529,4126.3,4126.2,2.01103028]
[1759107948763,1.25189529,4126.3,4126.2,2.01103028]
[1759107949561,1.45689529,4126.3,4126.2,2.01103028]
[1759107950366,0.96642,4126.3,4126.2,2.01103028]
[1759107953965,0.96642,4126.3,4126.2,1.76603028]
[1759107954169,0.96642,4126.3,4126.2,2.01103028]
[1759107955467,0.76142,4126.3,4126.2,2.01103028]
[1759107955668,0.76627406,4126.4,4126.2,3.0062815]
[1759107955870,0.76627406,4126.4,4126.3,3.9626]
[1759107956171,0.98447406,4126.4,4126.3,3.9626]
[1759107958270,1.20077406,4126.4,4126.3,3.6366]
[1759107958481,1.69123552,4126.4,4126.3,4.22233028]
[1759107958768,1.69123552,4126.4,4126.3,4.43053028]
[1759107958975,1.69123552,4126.4,4126.3,4.97713028]
[1759107960572,1.20077406,4126.4,4126.3,4.97713028]
[1759107962274,0.1245,4127.0,4126.9,0.4288]
[1759107962479,0.98235,4127.0,4126.9,1.76933028]
[1759107962679,1.47173096,4127.0,4126.9,1.76933028]
[1759107962876,1.81653096,4127.0,4126.9,1.44333028]
[1759107963176,1.81950216,4127.0,4126.9,1.44527124]
[1759107965578,1.81950216,4127.0,4126.9,1.77127124]
[1759107966176,1.47470216,4127.0,4126.9,2.01627124]
[1759107966477,0.9853212,4127.0,4126.9,2.01627124]
[1759107967472,0.0029712,4127.0,4126.9,2.01627124]
[1759107967678,0.4359,4127.5,4127.4,0.7548]
[1759107967876,0.4359,4127.5,4127.4,5.22213028]
[1759107968066,0.9823,4127.5,4127.4,5.22213028]
[1759107968266,0.43588,4127.7,4127.5,0.326]
[1759107968478,0.43588,4127.7,4127.6,0.9998]
[1759107968779,0.3282,4127.8,4127.7,0.7548]
[1759107968972,0.33031479,4127.8,4127.7,1.76933028]
[1759107969368,0.76402,4128.3,4128.0,0.4288]
[1759107969571,0.76402,4128.3,4127.7,1.01453028]
[1759107969572,0.98222,4128.3,4128.2,4.97713028]
[1759107969766,1.19852,4128.3,4128.2,4.65113028]
[1759107969975,0.5464,4128.3,4128.2,4.97713028]
[1759107970173,0.43581,4128.4,4128.2,4.65113028]
[1759107970380,0.00297644,4128.4,4128.3,0.9998]
[1759107970581,0.33117644,4128.4,4128.3,0.9998]
[1759107971078,0.00297644,4128.4,4128.3,0.9998]
[1759107972086,0.76567644,4128.4,4128.3,0.9998]
[1759107972582,0.00297644,4128.4,4128.3,0.9998]
[1759107973480,0.54097644,4128.4,4128.3,0.7548]
[1759107973678,0.54097644,4128.4,4128.3,0.9998]
[1759107978084,0.54097644,4128.4,4128.3,0.7548]
[1759107978284,0.75317644,4128.4,4128.3,0.9998]
[1759107979088,0.75317644,4128.4,4128.3,0.7548]
[1759107979285,0.75317644,4128.4,4128.3,0.9998]
[1759107979581,0.54097644,4128.4,4128.3,0.9998]
[1759107980281,0.75317644,4128.4,4128.3,0.9998]
[1759107980586,0.75317644,4128.4,4128.3,0.9988]
[1759107980779,0.75317644,4128.4,4128.3,0.4288]
[1759107980983,0.75317644,4128.4,4128.3,1.46673028]
[1759107981285,0.75317644,4128.4,4128.3,1.22273028]
[1759107981480,0.75317644,4128.4,4128.3,1.46673028]
[1759107982287,0.75317644,4128.4,4128.3,1.68023028]
[1759107982588,0.75317644,4128.4,4128.3,1.98983028]
[1759107985988,0.54097644,4128.4,4128.3,1.98983028]
[1759107987276,0.32547644,4128.4,4128.3,1.98983028]
[1759107987586,0.00297644,4128.4,4128.3,1.98983028]
[1759107988282,0.312,4128.7,4128.6,0.4202]
[1759107988584,0.6465,4129.4,4129.3,0.2043]
[1759107988780,0.8624,4129.4,4129.3,1.21883028]
[1759107988982,0.2108,4129.4,4129.3,2.00433028]
[1759107989181,0.312,4129.8,4129.4,0.4357]
[1759107989486,0.74044238,4129.8,4129.7,1.43473028]
[1759107989681,0.74044238,4129.8,4129.7,1.76033028]
[1759107989877,0.74044238,4129.8,4129.7,2.00433028]
[1759107991287,0.31374238,4129.8,4129.7,2.00433028]
[1759107993285,0.00174238,4129.8,4129.7,2.00433028]
[1759107993590,0.8739,4130.5,4130.4,0.7458]
[1759107993784,0.8739,4130.5,4130.4,3.2078]
[1759107994296,0.5228,4130.5,4130.4,3.9536]
[1759107994494,0.87629713,4130.5,4130.4,3.95618268]
[1759107994682,0.87629713,4130.5,4130.4,3.63058268]
[1759107994888,0.87629713,4130.5,4130.4,3.95618268]
[1759107995587,0.31439713,4130.5,4130.4,3.95618268]
[1759107995783,0.00239713,4130.5,4130.4,3.95618268]
[1759107997195,0.31439713,4130.5,4130.4,3.95618268]
[1759107999497,0.52519713,4130.5,4130.4,3.95618268]
[1759108001299,0.00239713,4130.5,4130.4,3.95618268]
[1759108002609,1.17418,4131.4,4131.3,0.7458]
[1759108002906,1.17415,4131.8,4131.7,0.4202]
[1759108003106,1.17415,4131.8,4131.7,1.43473028]
[1759108003603,1.17607567,4131.8,4131.7,1.43473028]
[1759108004298,1.17607567,4131.8,4131.7,1.29478158]